[Event "Chpt Reg Jeunes Occitanie 2026 - Espalion"]
[Site "Espalion, France"]
[Round "5.5"]
[ECO "?"]
[Annotator "?"]
[TimeControl "1h30 + 30sec/cp"]

1. e4 {[%clk 1:30:34][%emt 0:00:25]} 1... e5 {[%clk 1:30:57][%emt 0:00:04]} 2.
Nf3 {[%clk 1:31:01][%emt 0:00:03]} 2... Nc6 {[%clk 1:31:22][%emt 0:00:04]} 3.
Bb5 {[%clk 1:31:26][%emt 0:00:06]} 3... a6 {[%clk 1:31:35][%emt 0:00:17]} 4.
Ba4 {[%clk 1:31:52][%emt 0:00:04]} 4... b5 {[%clk 1:31:56][%emt 0:00:08]} 5.
Bb3 {[%clk 1:32:18][%emt 0:00:04]} 5... Bc5 {[%clk 1:32:12][%emt 0:00:14]} 6.
O-O {[%clk 1:29:00][%emt 0:03:48]} 6... Nf6 {[%clk 1:30:26][%emt 0:02:16]} 7.
Nxe5 {[%clk 1:28:17][%emt 0:01:14]} 7... Nxe5 {[%clk 1:28:08][%emt 0:02:48]}
8. d4 {[%clk 1:28:37][%emt 0:00:09]} 8... O-O {[%clk 1:01:19][%emt 0:26:24]}
9. dxe5 {[%clk 1:26:13][%emt 0:03:49]} 9... Nxe4 {[%clk 1:00:53][%emt 0:00:56]}
 10. Qd5 {[%clk 1:25:14][%emt 0:01:28]} 10... Bxf2+ {[%clk 1:00:27][%emt
0:00:57]} 11. Rxf2 {[%clk 1:25:24][%emt 0:00:20]} 11... Nxf2 {[%emt 0:00:06]}
12. Qxa8 {[%clk 1:25:11][%emt 0:00:42]} 12... Qh4 {[%clk 1:01:17][%emt
0:00:05]} 13. Qf3 {[%clk 1:20:17][%emt 0:05:23]} 13... Ng4 {[%clk
0:59:35][%emt 0:02:13]} 14. Bf4 {[%clk 1:14:36][%emt 0:06:11]} 14... Bb7
{[%clk 0:56:15][%emt 0:03:50]} 15. Qf1 {[%clk 1:10:16][%emt 0:04:50]} 15...
Qe7 {[%clk 0:51:44][%emt 0:05:00]} 16. Bg3 {[%clk 1:06:22][%emt 0:04:24]}
16... Ne3 {[%clk 0:51:58][%emt 0:00:16]} 17. Qf2 {[%clk 1:04:51][%emt 0:02:00]}
 17... Nxg2 {[%clk 0:51:44][%emt 0:00:45]} 18. Nc3 {[%clk 1:04:28][%emt
0:00:54]} 18... h5 {[%clk 0:50:46][%emt 0:01:28]} 19. Nd5 {[%clk 1:04:33][%emt
0:00:24]} 19... Bxd5 {[%clk 0:50:40][%emt 0:00:36]} 20. Bxd5 {[%clk
1:04:24][%emt 0:00:39]} 20... h4 {[%clk 0:51:07][%emt 0:00:03]} 21. Bxg2
{[%clk 1:02:38][%emt 0:02:16]} 21... hxg3 {[%clk 0:51:32][%emt 0:00:05]} 22.
hxg3 {[%clk 1:03:01][%emt 0:00:07]} 22... Qxe5 {[%clk 0:51:53][%emt 0:00:09]}
23. c3 {[%clk 1:03:17][%emt 0:00:14]} 23... d6 {[%clk 0:52:05][%emt 0:00:18]}
24. Re1 {[%clk 1:02:55][%emt 0:00:52]} 24... Qg5 {[%clk 0:52:31][%emt 0:00:05]}
 25. Qe3 {[%clk 1:02:23][%emt 0:01:02]} 25... Qg6 {[%clk 0:52:43][%emt
0:00:17]} 26. Be4 {[%clk 1:01:55][%emt 0:00:58]} 26... Qe6 {[%clk
0:53:00][%emt 0:00:13]} 27. Bb1 {[%clk 0:58:00][%emt 0:04:25]} 27... Qh3
{[%clk 0:53:21][%emt 0:00:09]} 28. Qf4 {[%clk 0:57:57][%emt 0:00:32]} 28... g6
{[%clk 0:53:16][%emt 0:00:37]} 29. Re2 {[%clk 0:58:13][%emt 0:00:13]} 29...
Qh5 {[%clk 0:53:26][%emt 0:00:20]} 30. Qd2 {[%clk 0:56:52][%emt 0:01:51]}
30... Qh3 {[%clk 0:53:05][%emt 0:00:51]} 31. Qd3 {[%clk 0:56:28][%emt 0:00:54]}
 31... Qh5 {[%clk 0:52:58][%emt 0:00:37]} 32. Rh2 {[%clk 0:56:00][%emt
0:00:58]} 32... Qc5+ {[%clk 0:53:23][%emt 0:00:05]} 33. Rf2 {[%clk
0:55:55][%emt 0:00:34]} 33... Re8 {[%clk 0:53:38][%emt 0:00:15]} 34. Qd4
{[%clk 0:53:43][%emt 0:02:42]} 34... Qg5 {[%clk 0:53:41][%emt 0:00:27]} 35.
Qf4 {[%clk 0:52:57][%emt 0:01:17]} 35... Qd5 {[%clk 0:54:06][%emt 0:00:04]}
36. Bc2 {[%clk 0:50:54][%emt 0:02:33]} 36... Re1+ {[%clk 0:54:26][%emt
0:00:10]} 37. Rf1 {[%clk 0:51:22][%emt 0:00:02]} 37... Re2 {[%clk
0:54:53][%emt 0:00:03]} 38. Rf2 {[%clk 0:48:04][%emt 0:02:29]} 1/2-1/2

[White "BORCEUX, Theophile"]
[Black "FOPPOLO, Marvin"]
[WhiteElo "1888"]
[BlackElo "1880"]
[Result "0-1"]
[Date "2026.03.06"]

[Event "Chpt Reg Jeunes Occitanie 2026 - Espalion"]
[Site "Espalion, France"]
[Round "6.1"]
[ECO "?"]
[Annotator "?"]
[TimeControl "1h30 + 30sec/cp"]

1. d4 {[%clk 1:30:57][%emt 0:00:02]} 1... d5 {[%clk 1:30:59][%emt 0:00:01]} 2.
Nc3 {[%clk 1:31:21][%emt 0:00:07]} 2... Nf6 {[%clk 1:31:28][%emt 0:00:01]} 3.
Bf4 {[%clk 1:31:44][%emt 0:00:07]} 3... c5 {[%clk 1:31:55][%emt 0:00:03]} 4.
e4 {[%clk 1:32:04][%emt 0:00:10]} 4... Nxe4 {[%clk 1:32:20][%emt 0:00:05]} 5.
Nxe4 {[%clk 1:32:27][%emt 0:00:07]} 5... dxe4 {[%clk 1:32:45][%emt 0:00:05]}
6. dxc5 {[%clk 1:32:51][%emt 0:00:05]} 6... Qa5+ {[%clk 1:33:06][%emt 0:00:09]}
 7. c3 {[%clk 1:33:14][%emt 0:00:08]} 7... Qxc5 {[%clk 1:33:32][%emt 0:00:03]}
8. Qa4+ {[%clk 1:33:39][%emt 0:00:06]} 8... Nc6 {[%clk 1:33:54][%emt 0:00:09]}
9. Qxe4 {[%clk 1:34:01][%emt 0:00:07]} 9... g6 {[%clk 1:34:22][%emt 0:00:02]}
10. Nf3 {[%clk 1:34:17][%emt 0:00:14]} 10... Bg7 {[%clk 1:34:44][%emt 0:00:07]}
 11. Rd1 {[%clk 1:34:27][%emt 0:00:21]} 11... Qb6 {[%clk 1:29:25][%emt
0:05:49]} 12. Qc2 {[%clk 1:20:44][%emt 0:14:13]} 12... Be6 {[%clk
1:28:46][%emt 0:01:08]} 13. b3 {[%clk 1:13:34][%emt 0:07:41]} 13... Rc8 {[%clk
1:26:29][%emt 0:02:46]} 14. Qd2 {[%clk 1:05:47][%emt 0:08:18]} 14... Qa5
{[%clk 1:20:03][%emt 0:06:57]} 15. Rc1 {[%clk 0:57:14][%emt 0:09:02]} 15...
O-O {[%clk 1:17:44][%emt 0:02:49]} 16. Bd3 {[%clk 0:54:49][%emt 0:02:56]}
16... Rfd8 {[%clk 1:15:02][%emt 0:03:11]} 17. Qc2 {[%clk 0:54:17][%emt
0:01:02]} 17... Nb4 {[%clk 1:09:31][%emt 0:06:01]} 18. cxb4 {[%clk
0:52:55][%emt 0:01:52]} 18... Qxb4+ {[%clk 1:09:59][%emt 0:00:02]} 19. Bd2
{[%clk 0:53:15][%emt 0:00:10]} 19... Rxc2 {[%clk 1:10:21]} 20. Rxc2 {[%clk
0:53:40][%emt 0:00:13]} 20... Qg4 {[%clk 1:09:40][%emt 0:01:10]} 21. Be2
{[%clk 0:53:10][%emt 0:01:00]} 21... Qe4 {[%clk 1:04:34][%emt 0:05:35]} 22.
Rc1 {[%clk 0:51:54][%emt 0:01:48]} 22... Rc8 {[%clk 1:01:51][%emt 0:03:13]}
23. Rxc8+ {[%clk 0:51:26][%emt 0:00:58]} 23... Bxc8 {[%clk 1:00:42][%emt
0:01:39]} 24. Be3 {[%clk 0:50:50][%emt 0:01:07]} 24... Bc3+ {[%clk
0:58:00][%emt 0:03:11]} 25. Bd2 {[%clk 0:50:53][%emt 0:00:27]} 25... Qb1+
{[%clk 0:58:01][%emt 0:00:29]} 26. Bd1 {[%clk 0:51:17][%emt 0:00:06]} 26...
Bxd2+ {[%clk 0:58:03][%emt 0:00:27]} 27. Nxd2 {[%clk 0:51:42][%emt 0:00:06]}
27... Qxa2 {[%clk 0:58:15][%emt 0:00:18]} 28. Nc4 {[%clk 0:52:07][%emt
0:00:05]} 28... Be6 {[%clk 0:57:09][%emt 0:01:36]} 29. O-O {[%clk
0:52:27][%emt 0:00:10]} 29... Bxc4 {[%clk 0:57:25][%emt 0:00:14]} 30. bxc4
{[%clk 0:52:53][%emt 0:00:04]} 30... Qxc4 {[%clk 0:57:41][%emt 0:00:14]} 31.
Bf3 {[%clk 0:53:20][%emt 0:00:03]} 31... b5 {[%clk 0:57:53][%emt 0:00:18]} 0-1

[White "DECLERCK, Timothee"]
[Black "AK, Maxime"]
[WhiteElo "1854"]
[BlackElo "1800"]
[Result "1/2-1/2"]
[Date "2026.03.06"]

[Event "Chpt Reg Jeunes Occitanie 2026 - Espalion"]
[Site "Espalion, France"]
[Round "6.2"]
[ECO "?"]
[Annotator "?"]
[TimeControl "1h30 + 30sec/cp"]

1. d4 {[%clk 1:30:55][%emt 0:00:05]} 1... Nf6 {[%clk 1:30:36][%emt 0:00:24]}
2. c4 {[%clk 1:31:17][%emt 0:00:08]} 2... e6 {[%clk 1:30:50][%emt 0:00:16]} 3.
Nc3 {[%clk 1:31:36][%emt 0:00:10]} 3... d5 {[%clk 1:31:13][%emt 0:00:08]} 4.
cxd5 {[%clk 1:31:56][%emt 0:00:11]} 4... exd5 {[%clk 1:31:38][%emt 0:00:05]}
5. Bg5 {[%clk 1:32:06][%emt 0:00:19]} 5... c6 {[%clk 1:32:03][%emt 0:00:06]}
6. e3 {[%clk 1:32:28][%emt 0:00:07]} 6... Bf5 {[%clk 1:32:22][%emt 0:00:10]}
7. Qf3 {[%clk 1:31:58][%emt 0:01:01]} 7... Bg6 {[%clk 1:32:45][%emt 0:00:07]}
8. Bxf6 {[%clk 1:32:10][%emt 0:00:19]} 8... Qxf6 {[%clk 1:33:07][%emt 0:00:07]}
 9. Qxf6 {[%clk 1:32:23][%emt 0:00:18]} 9... gxf6 {[%clk 1:33:33][%emt
0:00:04]} 10. Nf3 {[%clk 1:32:04][%emt 0:00:49]} 10... Nd7 {[%clk
1:32:49][%emt 0:01:14]} 11. Nh4 {[%clk 1:26:08][%emt 0:06:26]} 11... Bd6
{[%clk 1:30:58][%emt 0:02:20]} 12. Ne2 {[%clk 1:22:13][%emt 0:04:25]} 12...
Bb4+ {[%clk 1:28:23][%emt 0:03:02]} 13. Kd1 {[%clk 1:21:44][%emt 0:01:01]}
13... Nf8 {[%clk 1:22:23][%emt 0:06:30]} 14. Ng3 {[%clk 1:20:52][%emt 0:01:22]}
 14... Ne6 {[%clk 1:20:56][%emt 0:01:58]} 15. Ngf5 {[%clk 1:19:33][%emt
0:01:49]} 15... Bf8 {[%clk 1:20:30][%emt 0:00:54]} 16. Bd3 {[%clk
1:16:42][%emt 0:03:23]} 16... Kd7 {[%clk 1:18:46][%emt 0:02:14]} 17. Ke2
{[%clk 1:13:31][%emt 0:03:38]} 17... Re8 {[%clk 1:17:35][%emt 0:01:41]} 18. a3
{[%clk 1:09:49][%emt 0:04:14]} 18... Nf4+ {[%clk 1:15:41][%emt 0:02:24]} 19.
Kd2 {[%clk 1:10:06][%emt 0:00:13]} 19... Nxd3 {[%clk 1:16:05][%emt 0:00:06]}
20. Kxd3 {[%clk 1:10:23][%emt 0:00:14]} 20... Re4 {[%clk 1:12:38][%emt
0:03:56]} 21. Kd2 {[%clk 1:06:55][%emt 0:03:58]} 21... Bxf5 {[%clk
1:08:58][%emt 0:04:10]} 22. Nxf5 {[%clk 1:07:08][%emt 0:00:17]} 22... Rg4
{[%clk 1:07:33][%emt 0:01:53]} 23. g3 {[%clk 1:04:02][%emt 0:03:38]} 23... Rg5
{[%clk 1:03:49][%emt 0:04:13]} 24. Nh4 {[%clk 1:03:58][%emt 0:00:34]} 24...
Bd6 {[%clk 1:02:18][%emt 0:02:00]} 25. Rhc1 {[%clk 0:58:32][%emt 0:05:55]}
25... a5 {[%clk 1:00:02][%emt 0:02:48]} 26. b3 {[%clk 0:42:59][%emt 0:16:04]}
26... Ra8 {[%clk 0:59:29][%emt 0:01:03]} 27. Kc3 {[%clk 0:40:04][%emt 0:03:25]}
 27... Ra6 {[%clk 0:51:01][%emt 0:08:58]} 28. b4 {[%emt 0:19:49]} 28... axb4+
{[%emt 0:00:11]} 29. axb4 Rb6 30. Rcb1 {[%emt 0:00:04]} 30... Rg8 {[%emt
0:00:04]} 31. Nf5 {[%emt 0:00:01]} 31... Ke6 32. Nh4 {[%clk 0:18:26][%emt
0:00:09]} 32... Kd7 {[%clk 0:51:01]} 1/2-1/2

[White "POSOCCO DE GRANDI, Marc"]
[Black "KERCKHOVE, Cody"]
[WhiteElo "1871"]
[BlackElo "1588"]
[Result "1-0"]
[Date "2026.03.06"]

[Event "Chpt Reg Jeunes Occitanie 2026 - Espalion"]
[Site "Espalion, France"]
[Round "6.3"]
[ECO "?"]
[Annotator "?"]
[TimeControl "1h30 + 30sec/cp"]

1. d4 {[%clk 1:30:58][%emt 0:00:01]} 1... Nf6 {[%clk 1:30:53][%emt 0:00:07]}
2. c4 {[%clk 1:31:23][%emt 0:00:05]} 2... g6 {[%clk 1:31:19][%emt 0:00:04]} 3.
Nc3 {[%clk 1:31:44][%emt 0:00:09]} 3... d5 {[%clk 1:31:41][%emt 0:00:07]} 4.
Nf3 {[%clk 1:31:12][%emt 0:01:04]} 4... Bg7 {[%clk 1:32:02][%emt 0:00:08]} 5.
e3 {[%clk 1:29:55][%emt 0:01:48]} 5... O-O {[%clk 1:32:21][%emt 0:00:11]} 6.
Be2 {[%clk 1:30:16][%emt 0:00:09]} 6... c6 {[%clk 1:26:51][%emt 0:05:58]} 7.
O-O {[%clk 1:29:11][%emt 0:01:36]} 7... Nbd7 {[%clk 1:27:00][%emt 0:00:21]} 8.
Bd2 {[%clk 1:29:16][%emt 0:00:25]} 8... Re8 {[%clk 1:26:54][%emt 0:00:36]} 9.
Qb3 {[%clk 1:27:41][%emt 0:02:06]} 9... Qb6 {[%clk 1:25:08][%emt 0:02:15]} 10.
cxd5 {[%clk 1:22:19][%emt 0:05:53]} 10... Qxb3 {[%clk 1:18:35][%emt 0:07:03]}
11. axb3 {[%clk 1:22:09][%emt 0:00:40]} 11... cxd5 {[%clk 1:16:49][%emt
0:02:15]} 12. Nb5 {[%clk 1:22:02][%emt 0:00:38]} 12... Rb8 {[%clk
1:09:11][%emt 0:08:08]} 13. Rxa7 {[%clk 1:20:23][%emt 0:02:09]} 13... e6
{[%clk 0:56:18][%emt 0:13:23]} 14. Ba5 {[%clk 1:10:05][%emt 0:10:49]} 14... b6
{[%clk 0:55:04][%emt 0:01:43]} 15. Bb4 {[%clk 1:10:18][%emt 0:00:18]} 15...
Rb7 {[%clk 0:46:39][%emt 0:08:55]} 16. Raa1 {[%clk 1:02:04][%emt 0:08:43]}
16... Bf8 {[%clk 0:45:10][%emt 0:01:59]} 17. Bd6 {[%clk 0:58:23][%emt 0:04:11]}
 17... Ne4 {[%clk 0:42:15][%emt 0:03:25]} 18. Bf4 {[%clk 0:55:51][%emt
0:03:02]} 18... Nb8 {[%clk 0:33:42][%emt 0:09:03]} 19. Ra7 {[%clk
0:38:33][%emt 0:17:49]} 19... Rxa7 {[%clk 0:29:14][%emt 0:04:58]} 20. Nxa7
{[%clk 0:38:59][%emt 0:00:05]} 20... Ba6 {[%clk 0:21:56][%emt 0:07:48]} 21.
Bb5 {[%clk 0:34:07][%emt 0:05:21]} 21... Bxb5 {[%clk 0:20:46][%emt 0:01:40]}
22. Nxb5 {[%clk 0:34:32][%emt 0:00:06]} 22... Bb4 {[%clk 0:14:59][%emt
0:06:17]} 23. Rc1 {[%clk 0:32:05][%emt 0:02:57]} 23... Na6 {[%clk
0:13:06][%emt 0:02:23]} 24. Ne5 {[%clk 0:27:46][%emt 0:04:49]} 24... Nd6
{[%clk 0:09:15][%emt 0:04:21]} 25. Nxd6 {[%clk 0:24:16][%emt 0:04:00]} 25...
Bxd6 {[%clk 0:09:30][%emt 0:00:15]} 26. Nxg6 {[%clk 0:24:16][%emt 0:00:30]}
26... hxg6 {[%clk 0:09:10][%emt 0:00:50]} 27. Bxd6 {[%clk 0:24:41][%emt
0:00:06]} 27... b5 {[%clk 0:08:12][%emt 0:01:28]} 28. Rc6 {[%clk 0:22:57][%emt
0:02:14]} 28... Ra8 {[%clk 0:07:51][%emt 0:00:51]} 29. h4 {[%clk 0:23:12][%emt
0:00:15]} 29... Ra7 {[%clk 0:06:59][%emt 0:01:22]} 30. Be5 {[%clk
0:21:27][%emt 0:02:15]} 30... Kf8 {[%clk 0:06:23][%emt 0:01:06]} 31. g4 {[%clk
0:19:14][%emt 0:02:43]} 31... Nb4 {[%clk 0:05:30][%emt 0:01:22]} 32. Bd6+
{[%clk 0:19:35][%emt 0:00:09]} 1-0

[White "COLLAS, Anthony"]
[Black "LADIER, Lucas"]
[WhiteElo "1672"]
[BlackElo "1833"]
[Result "0-1"]
[Date "2026.03.06"]

[Event "Chpt Reg Jeunes Occitanie 2026 - Espalion"]
[Site "Espalion, France"]
[Round "6.4"]
[ECO "?"]
[Annotator "?"]
[TimeControl "1h30 + 30sec/cp"]

1. e4 {[%clk 1:30:57][%emt 0:00:02]} 1... c5 {[%clk 1:30:55][%emt 0:00:06]} 2.
Nf3 {[%clk 1:31:23][%emt 0:00:04]} 2... e6 {[%clk 1:31:18][%emt 0:00:06]} 3.
d4 {[%clk 1:31:47][%emt 0:00:07]} 3... cxd4 {[%clk 1:31:43][%emt 0:00:05]} 4.
Nxd4 {[%clk 1:32:14][%emt 0:00:03]} 4... Nf6 {[%clk 1:32:04][%emt 0:00:09]} 5.
Bd3 {[%clk 1:31:34][%emt 0:01:10]} 5... Nc6 {[%clk 1:32:21][%emt 0:00:13]} 6.
Be3 {[%clk 1:29:53][%emt 0:02:11]} 6... d5 {[%clk 1:32:23][%emt 0:00:28]} 7.
Nd2 {[%clk 1:28:15][%emt 0:02:08]} 7... Be7 {[%clk 1:27:48][%emt 0:05:04]} 8.
O-O {[%clk 1:25:45][%emt 0:03:02]} 8... O-O {[%clk 1:25:58][%emt 0:02:19]} 9.
exd5 {[%clk 1:24:16][%emt 0:01:59]} 9... Nxd5 {[%clk 1:25:29][%emt 0:00:59]}
10. Nxc6 {[%clk 1:24:06][%emt 0:00:39]} 10... bxc6 {[%clk 1:25:00][%emt
0:00:59]} 11. Qh5 {[%clk 1:09:41][%emt 0:14:54]} 11... g6 {[%clk 1:20:46][%emt
0:04:45]} 12. Qf3 {[%clk 1:09:40][%emt 0:00:31]} 12... Nxe3 {[%clk
1:19:12][%emt 0:02:05]} 13. fxe3 {[%clk 1:07:53][%emt 0:02:17]} 13... Rb8
{[%clk 1:08:53][%emt 0:10:49]} 14. Nb3 {[%clk 1:04:52][%emt 0:03:31]} 14... c5
{[%clk 1:04:08][%emt 0:05:15]} 15. Rad1 {[%clk 1:00:29][%emt 0:04:52]} 15...
Qc7 {[%clk 1:03:36][%emt 0:01:02]} 16. g3 {[%clk 0:59:53][%emt 0:01:06]} 16...
c4 {[%clk 1:03:20][%emt 0:00:46]} 17. Bxc4 {[%clk 0:57:55][%emt 0:02:28]}
17... Qxc4 {[%clk 1:03:34][%emt 0:00:16]} 18. Rd4 {[%clk 0:58:00][%emt
0:00:24]} 18... Qc7 {[%clk 0:58:58][%emt 0:05:07]} 19. Rh4 {[%clk
0:56:57][%emt 0:01:32]} 19... Bxh4 {[%clk 0:58:59][%emt 0:00:30]} 0-1

[White "DARTHENAY, Antoine"]
[Black "DESPRATS EXPOSITO, Justin"]
[WhiteElo "1823"]
[BlackElo "1663"]
[Result "1/2-1/2"]
[Date "2026.03.06"]

[Event "Chpt Reg Jeunes Occitanie 2026 - Espalion"]
[Site "Espalion, France"]
[Round "6.5"]
[ECO "?"]
[Annotator "?"]
[TimeControl "1h30 + 30sec/cp"]

1. e4 {[%clk 1:30:57][%emt 0:00:03]} 1... c6 {[%clk 1:30:56][%emt 0:00:05]} 2.
c4 {[%clk 1:31:22][%emt 0:00:05]} 2... d5 {[%clk 1:31:19][%emt 0:00:07]} 3.
cxd5 {[%clk 1:31:47][%emt 0:00:05]} 3... cxd5 {[%clk 1:31:44][%emt 0:00:05]}
4. exd5 {[%clk 1:32:11][%emt 0:00:06]} 4... Nf6 {[%clk 1:32:05][%emt 0:00:07]}
5. Qa4+ {[%clk 1:32:37][%emt 0:00:05]} 5... Bd7 {[%clk 1:32:25][%emt 0:00:10]}
6. Qb3 {[%clk 1:33:00][%emt 0:00:07]} 6... Qc7 {[%clk 1:32:37][%emt 0:00:17]}
7. Nc3 {[%clk 1:33:08][%emt 0:00:22]} 7... g6 {[%clk 1:31:13][%emt 0:01:54]}
8. g3 {[%clk 1:32:43][%emt 0:00:55]} 8... Bg7 {[%clk 1:30:47][%emt 0:00:56]}
9. Bg2 {[%clk 1:33:04][%emt 0:00:10]} 9... O-O {[%clk 1:29:31][%emt 0:01:46]}
10. Nge2 {[%clk 1:33:00][%emt 0:00:34]} 10... a5 {[%clk 1:28:04][%emt 0:01:57]}
 11. a4 {[%clk 1:30:07][%emt 0:03:23]} 11... Na6 {[%clk 1:25:59][%emt 0:02:35]}
 12. d4 {[%clk 1:28:50][%emt 0:01:47]} 12... Nb4 {[%clk 1:25:00][%emt 0:01:30]}
 13. O-O {[%clk 1:28:20][%emt 0:01:00]} 13... Bf5 {[%clk 1:23:12][%emt
0:02:17]} 14. Bd2 {[%clk 1:21:00][%emt 0:07:50]} 14... Bc2 {[%clk
1:19:44][%emt 0:03:58]} 15. Qa3 {[%clk 1:05:55][%emt 0:15:35]} 15... Bd3
{[%clk 1:20:08][%emt 0:00:06]} 16. Rac1 {[%clk 1:03:31][%emt 0:02:55]} 16...
Qd7 {[%clk 1:18:32][%emt 0:02:06]} 17. Rfe1 {[%clk 1:00:20][%emt 0:03:40]}
17... Bf5 {[%clk 1:12:58][%emt 0:06:03]} 18. Red1 {[%clk 0:54:10][%emt
0:06:41]} 18... Nd3 {[%clk 1:07:23][%emt 0:06:06]} 19. Ra1 {[%clk
0:50:26][%emt 0:04:14]} 19... Nb4 {[%clk 1:07:18][%emt 0:00:35]} 20. Rac1
{[%clk 0:45:53][%emt 0:05:03]} 20... Nd3 {[%clk 1:07:37][%emt 0:00:10]} 21.
Ra1 {[%emt 0:02:21]} 1/2-1/2

[White "FOPPOLO, Marvin"]
[Black "DECLERCK, Timothee"]
[WhiteElo "1880"]
[BlackElo "1854"]
[Result "1-0"]
[Date "2026.03.07"]